fUSD/lending_fUSD_20260608
["ID","MTS","AMOUNT","RATE_DAILY","PERIOD"]
[424452217,1780919443000,-150.0,0.0001376,2]
[424452222,1780919443000,-159.4975605,0.00013809,10]
[424452214,1780919443000,-443.0,0.00013711,2]
[424452200,1780919443000,-500.0,0.00013699,2]
[424452259,1780919443000,-500.0,0.00014148,2]
[424452283,1780919443000,-150.0,0.00014237,2]
[424452252,1780919443000,-500.0,0.00014083,2]
[424452281,1780919443000,-5021.31123417,0.00014212,2]
[424452290,1780919443000,-2834.48051187,0.00014249,2]
[424452300,1780919443000,-500.0,0.00014249,2]
[424452289,1780919443000,-2181.10590754,0.00014249,2]
[424452292,1780919443000,-250.0,0.00014249,2]
[424452291,1780919443000,-2617.67609917,0.00014249,2]
[424452297,1780919443000,-500.0,0.00014249,2]
[424452293,1780919443000,-500.0,0.00014249,2]
[424452299,1780919443000,-500.0,0.00014249,2]
[424452298,1780919443000,-500.0,0.00014249,2]
[424452294,1780919443000,-500.0,0.00014249,2]
[424452296,1780919443000,-500.0,0.00014249,2]
[424452295,1780919443000,-500.0,0.00014249,2]
[424452313,1780919443000,-151.0,0.0001425,2]
[424452301,1780919443000,-500.0,0.00014249,2]
[424452303,1780919443000,-500.0,0.00014249,2]
[424452302,1780919443000,-500.0,0.00014249,2]
[424452304,1780919443000,-500.0,0.00014249,2]
[424452307,1780919443000,-1452634.59735225,0.0001425,2]
[424452309,1780919443000,-10558.17709739,0.0001425,2]
[424452305,1780919443000,-500.0,0.00014249,2]
[424452306,1780919443000,-289.51,0.00014249,2]
[424452312,1780919443000,-151.0,0.0001425,2]
[424452308,1780919443000,-42560.21534199,0.0001425,2]
[424452314,1780919443000,-151.0,0.0001425,2]
[424452315,1780919443000,-151.0,0.0001425,2]
[424452316,1780919443000,-151.0,0.0001425,2]
[424452251,1780919443000,-500.0,0.00014083,2]
[424452311,1780919443000,-151.0,0.0001425,2]
[424452285,1780919443000,-166.66,0.00014247,2]
[424452310,1780919443000,-151.0,0.0001425,2]
[424452287,1780919443000,-1030.0,0.00014247,2]
[424452284,1780919443000,-152.91735647,0.0001424,2]
[424452260,1780919443000,-500.0,0.00014148,2]
[424452249,1780919443000,-500.0,0.00014083,2]
[424452258,1780919443000,-500.0,0.00014148,2]
[424452253,1780919443000,-500.0,0.00014083,2]
[424452254,1780919443000,-150.0,0.00014087,2]
[424452257,1780919443000,-166.65,0.00014135,2]
[424452256,1780919443000,-231.32,0.00014129,2]
[424452255,1780919443000,-166.66,0.0001411,2]
[424452273,1780919443000,-228.08200418,0.0001415,2]
[424452263,1780919443000,-500.0,0.00014149,2]
[424452274,1780919443000,-3720.68470655,0.0001415,2]
[424452264,1780919443000,-311.99555842,0.00014149,2]
[424452262,1780919443000,-505.39647027,0.00014149,2]
[424452261,1780919443000,-577.1790522,0.00014149,2]
[424452265,1780919443000,-523.25020934,0.00014149,2]
[424452275,1780919443000,-215.03290396,0.0001415,2]
[424452280,1780919443000,-215.86427702,0.0001421,2]
[424452282,1780919443000,-152.0,0.0001422,7]
[424452277,1780919443000,-1500.0,0.00014153,2]
[424452288,1780919443000,-841.3188791,0.00014249,2]
[424452279,1780919443000,-150.0,0.00014169,2]
[424452278,1780919443000,-347.18103299,0.00014155,2]
[424452267,1780919443000,-500.0,0.00014149,2]
[424452271,1780919443000,-500.0,0.00014149,2]
[424452269,1780919443000,-500.0,0.00014149,2]
[424452266,1780919443000,-526.36523084,0.00014149,2]
[424452268,1780919443000,-500.0,0.00014149,2]
[424452270,1780919443000,-500.0,0.00014149,2]
[424452337,1780919444000,-25000.0,0.00014557,3]
[424452344,1780919444000,-455.0,0.00014584,2]
[424452343,1780919444000,-445.0,0.00014584,2]
[424452339,1780919444000,-25000.0,0.00014574,3]
[424452342,1780919444000,-443.0,0.00014584,2]
[424452348,1780919444000,-25000.0,0.0001461,3]
[424452341,1780919444000,-25000.0,0.00014583,3]
[424452350,1780919444000,-25000.0,0.00014627,3]
[424452352,1780919444000,-25000.0,0.00014636,3]
[424452361,1780919444000,-151.0,0.00014654,2]
[424452359,1780919444000,-151.0,0.00014654,2]
[424452353,1780919444000,-25000.0,0.00014645,3]
[424452354,1780919444000,-25000.0,0.00014654,3]
[424452355,1780919444000,-159.476412,0.00014654,2]
[424452357,1780919444000,-151.0,0.00014654,2]
[424452360,1780919444000,-151.0,0.00014654,2]
[424452356,1780919444000,-151.0,0.00014654,2]
[424452358,1780919444000,-151.0,0.00014654,2]
[424452340,1780919444000,-150.0,0.00014578,2]
[424452363,1780919444000,-951.221767,0.00014654,2]
[424452351,1780919444000,-159.4975605,0.00014631,10]
[424452347,1780919444000,-25000.0,0.00014601,3]
[424452331,1780919444000,-150.0,0.00014441,2]
[424452338,1780919444000,-25000.0,0.00014566,3]
[424452362,1780919444000,-951.221767,0.00014654,2]
[424452324,1780919444000,-151.0,0.0001425,2]
[424452317,1780919444000,-151.0,0.0001425,2]
[424452321,1780919444000,-951.221767,0.0001425,2]
[424452320,1780919444000,-951.221767,0.0001425,2]
[424452323,1780919444000,-151.0,0.0001425,2]
[424452318,1780919444000,-151.0,0.0001425,2]
[424452322,1780919444000,-951.221767,0.0001425,2]
[424452332,1780919444000,-736.0,0.00014442,2]
[424452333,1780919444000,-6000.0,0.000145,2]
[424452325,1780919444000,-151.0,0.0001425,2]
[424452327,1780919444000,-166.66,0.00014384,2]
[424452328,1780919444000,-150.0,0.00014387,2]
[424452335,1780919444000,-347.18103299,0.00014528,2]
[424452326,1780919444000,-150.0,0.00014305,2]
[424452334,1780919444000,-1368.68,0.00014513,2]
[424452330,1780919444000,-215.03290396,0.00014433,2]
[424452329,1780919444000,-5021.31123417,0.00014404,2]
[424452336,1780919444000,-350.0,0.00014532,2]
[424452346,1780919444000,-400.0,0.000146,5]
[424452349,1780919444000,-25000.0,0.00014618,3]
[424452345,1780919444000,-25000.0,0.00014592,3]
[424452373,1780919444000,-151.0,0.00014671,2]
[424452319,1780919444000,-951.221767,0.0001425,2]
[424452365,1780919444000,-951.221767,0.00014654,2]
[424452388,1780919444000,-215.03290396,0.00014717,2]
[424452392,1780919444000,-25000.0,0.00014733,3]
[424452400,1780919444000,-151.0,0.00014759,2]
[424452401,1780919444000,-151.0,0.00014759,2]
[424452393,1780919444000,-1107.37387678,0.00014738,2]
[424452396,1780919444000,-25000.0,0.0001475,3]
[424452394,1780919444000,-25000.0,0.00014742,3]
[424452397,1780919444000,-151.0,0.00014759,2]
[424452395,1780919444000,-381.0,0.00014749,2]
[424452413,1780919444000,-17207.05498854,0.00014812,3]
[424452402,1780919444000,-151.0,0.00014759,2]
[424452404,1780919444000,-25000.0,0.00014768,3]
[424452406,1780919444000,-25000.0,0.00014786,3]
[424452405,1780919444000,-25000.0,0.00014777,3]
[424452411,1780919444000,-400.0,0.000148,5]
[424452407,1780919444000,-4920.90826675,0.00014787,2]
[424452410,1780919444000,-2000.0,0.000148,2]
[424452408,1780919444000,-10265.5628898,0.00014787,2]
[424452412,1780919444000,-25000.0,0.00014803,3]
[424452409,1780919444000,-25000.0,0.00014794,3]
[424452368,1780919444000,-151.0,0.00014654,2]
[424452390,1780919444000,-457.29,0.00014724,2]
[424452399,1780919444000,-151.0,0.00014759,2]
[424452403,1780919444000,-25000.0,0.00014759,3]
[424452398,1780919444000,-151.0,0.00014759,2]
[424452364,1780919444000,-951.221767,0.00014654,2]
[424452391,1780919444000,-600.0,0.00014726,2]
[424452366,1780919444000,-151.0,0.00014654,2]
[424452369,1780919444000,-10000.0,0.0001466,2]
[424452367,1780919444000,-151.0,0.00014654,2]
[424452371,1780919444000,-151.0,0.00014662,2]
[424452370,1780919444000,-700.0,0.00014661,2]
[424452375,1780919444000,-25000.0,0.00014671,3]
[424452386,1780919444000,-150.0,0.00014714,2]
[424452385,1780919444000,-25000.0,0.00014706,3]
[424452387,1780919444000,-25000.0,0.00014715,3]
[424452372,1780919444000,-25000.0,0.00014662,3]
[424452376,1780919444000,-25000.0,0.0001468,3]
[424452374,1780919444000,-151.0,0.00014671,2]
[424452377,1780919444000,-150.0,0.00014687,2]
[424452378,1780919444000,-25000.0,0.00014689,3]
[424452381,1780919444000,-2000.0,0.000147,2]
[424452379,1780919444000,-25000.0,0.00014698,3]
[424452382,1780919444000,-400.0,0.000147,5]
[424452384,1780919444000,-1555.5,0.00014701,2]
[424452383,1780919444000,-1068.11,0.00014701,2]
[424452380,1780919444000,-20422.43931928,0.000147,2]
[424452389,1780919444000,-25000.0,0.00014724,3]
[424452464,1780919446000,-151.0,0.0001485,2]
[424452458,1780919446000,-951.221767,0.0001485,2]
[424452462,1780919446000,-151.0,0.0001485,2]
[424452461,1780919446000,-151.0,0.0001485,2]
[424452459,1780919446000,-951.221767,0.0001485,2]
[424452457,1780919446000,-951.221767,0.0001485,2]
[424452455,1780919446000,-181.739911,0.0001485,2]
[424452463,1780919446000,-151.0,0.0001485,2]
[424452460,1780919446000,-951.221767,0.0001485,2]
[424452465,1780919446000,-150.0,0.0001485,2]
[424452456,1780919446000,-151.0,0.0001485,2]
[424452466,1780919446000,-25000.0,0.00014856,3]
[424452475,1780919446000,-25000.0,0.00014874,3]
[424452467,1780919446000,-5800.0,0.00014858,2]
[424452478,1780919446000,-381.0,0.0001488,2]
[424452477,1780919446000,-200.0,0.00014879,2]
[424452470,1780919446000,-197.227,0.0001486,2]
[424452479,1780919446000,-381.0,0.0001488,2]
[424452472,1780919446000,-300.0,0.00014864,2]
[424452474,1780919446000,-5800.0,0.00014866,2]
[424452473,1780919446000,-25000.0,0.00014865,3]
[424452476,1780919446000,-5800.0,0.00014874,2]
[424452481,1780919446000,-200.0,0.0001488,2]
[424452491,1780919446000,-151.0,0.000149,2]
[424452450,1780919446000,-282.464,0.0001485,2]
[424452468,1780919446000,-1169.643,0.0001486,2]
[424452453,1780919446000,-151.0,0.0001485,2]
[424452429,1780919446000,-22468.8949623,0.00014821,3]
[424452452,1780919446000,-151.0,0.0001485,2]
[424452426,1780919446000,-567.55422407,0.00014812,3]
[424452425,1780919446000,-3568.85180875,0.00014812,3]
[424452427,1780919446000,-3656.53897864,0.00014812,3]
[424452428,1780919446000,-2531.1050377,0.00014821,3]
[424452480,1780919446000,-200.0,0.0001488,2]
[424452430,1780919446000,-10000.0,0.00014821,2]
[424452441,1780919446000,-300.0,0.00014849,2]
[424452431,1780919446000,-25000.0,0.0001483,3]
[424452437,1780919446000,-5800.0,0.00014849,2]
[424452435,1780919446000,-381.0,0.00014845,2]
[424452433,1780919446000,-5800.0,0.00014841,2]
[424452434,1780919446000,-381.0,0.00014844,2]
[424452448,1780919446000,-282.46399,0.0001485,2]
[424452436,1780919446000,-25000.0,0.00014847,3]
[424452440,1780919446000,-666.0,0.00014849,2]
[424452438,1780919446000,-300.0,0.00014849,2]
[424452439,1780919446000,-300.0,0.00014849,2]
[424452442,1780919446000,-8413.00934282,0.0001485,2]
[424452443,1780919446000,-381.0,0.0001485,2]
[424452444,1780919446000,-381.0,0.0001485,2]
[424452445,1780919446000,-237280.7495408,0.0001485,2]
[424452454,1780919446000,-151.0,0.0001485,2]
[424452447,1780919446000,-151.0,0.0001485,2]
[424452446,1780919446000,-151.0,0.0001485,2]
[424452451,1780919446000,-151.0,0.0001485,2]
[424452449,1780919446000,-282.464,0.0001485,2]
[424452432,1780919446000,-25000.0,0.00014838,3]
[424452482,1780919446000,-25000.0,0.00014882,3]
[424452489,1780919446000,-1746.0,0.000149,5]
[424452488,1780919446000,-25000.0,0.000149,3]
[424452527,1780919446000,-300.0,0.00014995,2]
[424452515,1780919446000,-500.0,0.00014986,2]
[424452518,1780919446000,-500.0,0.00014986,2]
[424452519,1780919446000,-400.0,0.00014986,2]
[424452517,1780919446000,-500.0,0.00014986,2]
[424452521,1780919446000,-150.0,0.00014986,2]
[424452524,1780919446000,-168.21959693,0.00014986,2]
[424452522,1780919446000,-151.0,0.00014986,2]
[424452523,1780919446000,-150.0,0.00014986,2]
[424452520,1780919446000,-150.0,0.00014986,2]
[424452525,1780919446000,-263.98323092,0.00014994,10]
[424452539,1780919446000,-151.0,0.00014996,2]
[424452529,1780919446000,-300.0,0.00014995,2]
[424452528,1780919446000,-300.0,0.00014995,2]
[424452530,1780919446000,-62989.1734899,0.00014996,2]
[424452486,1780919446000,-5800.0,0.00014891,2]
[424452531,1780919446000,-121299.8315937,0.00014996,2]
[424452534,1780919446000,-9997.3561204,0.00014996,2]
[424452538,1780919446000,-151.0,0.00014996,2]
[424452537,1780919446000,-5618.8700594,0.00014996,2]
[424452533,1780919446000,-496654.9244249,0.00014996,2]
[424452535,1780919446000,-151.0,0.00014996,2]
[424452536,1780919446000,-151.0,0.00014996,2]
[424452540,1780919446000,-151.0,0.00014996,2]
[424452541,1780919446000,-151.0,0.00014996,2]
[424452526,1780919446000,-300.0,0.00014995,2]
[424452516,1780919446000,-500.0,0.00014986,2]
[424452532,1780919446000,-1280.5647453,0.00014996,2]
[424452511,1780919446000,-381.0,0.00014981,2]
[424452508,1780919446000,-381.0,0.00014957,2]
[424452484,1780919446000,-381.0,0.00014887,2]
[424452487,1780919446000,-1000.0,0.00014899,2]
[424452483,1780919446000,-5800.0,0.00014883,2]
[424452490,1780919446000,-5800.0,0.000149,2]
[424452485,1780919446000,-25000.0,0.00014891,3]
[424452493,1780919446000,-151.0,0.000149,2]
[424452492,1780919446000,-151.0,0.000149,2]
[424452495,1780919446000,-151.0,0.000149,2]
[424452496,1780919446000,-161.92787,0.000149,2]
[424452499,1780919446000,-400.0,0.000149,5]
[424452497,1780919446000,-1193.0,0.000149,5]
[424452502,1780919446000,-1408.77700511,0.000149,2]
[424452494,1780919446000,-151.0,0.000149,2]
[424452500,1780919446000,-347.18103299,0.000149,2]
[424452498,1780919446000,-489.84630771,0.000149,2]
[424452513,1780919446000,-273.53,0.00014985,2]
[424452509,1780919446000,-381.0,0.00014961,2]
[424452512,1780919446000,-296.15,0.00014985,2]
[424452507,1780919446000,-381.0,0.00014951,2]
[424452505,1780919446000,-152.51561586,0.00014925,2]
[424452510,1780919446000,-381.0,0.00014978,2]
[424452506,1780919446000,-335.53749417,0.00014944,2]
[424452503,1780919446000,-350.0,0.00014909,2]
[424452504,1780919446000,-10000.0,0.00014923,2]
[424452501,1780919446000,-3227.0,0.000149,2]
[424452514,1780919446000,-381.0,0.00014985,2]
[424452554,1780919447000,-2000.0,0.00014999,2]
[424452552,1780919447000,-151.0,0.00014997,2]
[424452542,1780919447000,-219.937538,0.00014996,2]
[424452547,1780919447000,-151.0,0.00014996,2]
[424452548,1780919447000,-151.0,0.00014996,2]
[424452549,1780919447000,-161.37214,0.00014996,2]
[424452546,1780919447000,-951.221767,0.00014996,2]
[424452544,1780919447000,-951.221767,0.00014996,2]
[424452550,1780919447000,-155.206927,0.00014996,2]
[424452545,1780919447000,-951.221767,0.00014996,2]
[424452553,1780919447000,-250.0,0.00014999,2]
[424452543,1780919447000,-951.221767,0.00014996,2]
[424452551,1780919447000,-151.0,0.00014997,2]
[424452565,1780919447000,-185.62,0.00012447,2]
[424452560,1780919447000,-404.75,0.00015,2]
[424452568,1780919447000,-237.1,0.00012447,2]
[424452559,1780919447000,-2874.02810723,0.00015,2]
[424452567,1780919447000,-500.0,0.00012447,2]
[424452564,1780919447000,-500.0,0.00012447,2]
[424452563,1780919447000,-1170.0,0.00015,2]
[424452566,1780919447000,-314.38,0.00012447,2]
[424452562,1780919447000,-1514.86166025,0.00015,2]
[424452557,1780919447000,-300.0,0.00014999,2]
[424452556,1780919447000,-300.0,0.00014999,2]
[424452558,1780919447000,-7869414.80304921,0.00015,2]
[424452555,1780919447000,-300.0,0.00014999,2]
[424452561,1780919447000,-311.98467859,0.00015,2]
[424452573,1780919448000,-1343.0,0.00015,2]
[424452572,1780919448000,-1265.7800926,0.00015,2]
[424452571,1780919448000,-7251.26669897,0.00015,2]
[424452570,1780919448000,-397.37892481,0.00012447,2]
[424452569,1780919448000,-262.9,0.00012447,2]
[424452588,1780920435000,4324.88077151,0.00030136,120]
[424452603,1780920637000,-152.51561586,0.00012385,2]
[424452602,1780920637000,-500.0,0.00012347,2]
[424452605,1780920637000,-290.0,0.00012593,2]
[424452601,1780920637000,-297.08264353,0.00012317,2]
[424452606,1780920637000,-852.06,0.00013108,2]
[424452607,1780920637000,-418.58,0.00013122,2]
[424452608,1780920637000,-593.57264403,0.00013135,2]
[424452604,1780920637000,-150.0,0.0001247,2]
[424452653,1780920638000,-215.03290396,0.0001415,2]
[424452646,1780920638000,-150.0,0.00013916,2]
[424452647,1780920638000,-507.27012513,0.00013916,2]
[424452645,1780920638000,-166.66,0.00013836,2]
[424452643,1780920638000,-150.0,0.00013702,2]
[424452641,1780920638000,-166.66,0.00013699,2]
[424452654,1780920638000,-500.0,0.00014159,2]
[424452651,1780920638000,-166.66,0.0001411,2]
[424452650,1780920638000,-250.0,0.00014,2]
[424452639,1780920638000,-150.99,0.00013699,2]
[424452649,1780920638000,-150.0,0.00013987,2]
[424452652,1780920638000,-150.0,0.0001413,2]
[424452657,1780920638000,-501.87117652,0.00014159,2]
[424452655,1780920638000,-505.49510151,0.00014159,2]
[424452648,1780920638000,-166.66,0.00013973,2]
[424452659,1780920638000,-500.0,0.00014159,2]
[424452661,1780920638000,-500.0,0.00014159,2]
[424452669,1780920638000,-316.62019818,0.00014159,2]
[424452665,1780920638000,-500.0,0.00014159,2]
[424452667,1780920638000,-500.0,0.00014159,2]
[424452663,1780920638000,-500.0,0.00014159,2]
[424452671,1780920638000,-500.0,0.00014159,2]
[424452673,1780920638000,-500.0,0.00014159,2]
[424452675,1780920638000,-500.0,0.00014159,2]
[424452677,1780920638000,-500.0,0.00014159,2]
[424452685,1780920638000,-446.0,0.00014159,2]
[424452656,1780920638000,-500.0,0.00014159,2]
[424452640,1780920638000,-200.0,0.00013699,2]
[424452633,1780920638000,-276.98837881,0.00013698,2]
[424452687,1780920638000,-500.0,0.00014159,2]
[424452610,1780920638000,-220.45,0.00013155,2]
[424452612,1780920638000,-1623.43,0.00013207,2]
[424452609,1780920638000,-1258.84735597,0.00013135,2]
[424452611,1780920638000,-606.22,0.00013184,2]
[424452614,1780920638000,-500.0,0.00013356,2]
[424452613,1780920638000,-291.7391,0.0001333,2]
[424452615,1780920638000,-150.0,0.00013429,2]
[424452616,1780920638000,-1507.47,0.0001343,2]
[424452620,1780920638000,-29999.99,0.0001343,2]
[424452617,1780920638000,-200.0,0.0001343,2]
[424452624,1780920638000,-150.0,0.00013488,2]
[424452619,1780920638000,-500.96081541,0.0001343,2]
[424452618,1780920638000,-9499.02918459,0.0001343,2]
[424452621,1780920638000,-150.25705167,0.00013488,2]
[424452623,1780920638000,-238.47314681,0.00013488,2]
[424452622,1780920638000,-224.57091147,0.00013488,2]
[424452625,1780920638000,-150.0,0.00013488,2]
[424452627,1780920638000,-150.0,0.00013488,2]
[424452637,1780920638000,-497.98493118,0.00013698,2]
[424452630,1780920638000,-1164.75,0.00013608,2]
[424452628,1780920638000,-150.0,0.00013488,2]
[424452626,1780920638000,-150.53336307,0.00013488,2]
[424452629,1780920638000,-150.0,0.00013488,2]
[424452632,1780920638000,-500.0,0.00013698,2]
[424452634,1780920638000,-500.0,0.00013698,2]
[424452631,1780920638000,-166.67,0.00013649,2]
[424452635,1780920638000,-500.0,0.00013698,2]
[424452636,1780920638000,-500.0,0.00013698,2]
[424452683,1780920638000,-446.0,0.00014159,2]
[424452638,1780920638000,-9999.99,0.00013699,2]
[424452681,1780920638000,-415.22640013,0.00014159,2]
[424452747,1780920638000,-800.0,0.000143,5]
[424452749,1780920638000,-166.66,0.00014384,2]
[424452748,1780920638000,-150.0,0.00014344,2]
[424452751,1780920638000,-215.03290396,0.00014433,2]
[424452750,1780920638000,-1300.0,0.000144,5]
[424452757,1780920638000,-500.0,0.00014447,2]
[424452756,1780920638000,-500.0,0.00014447,2]
[424452755,1780920638000,-500.0,0.00014447,2]
[424452752,1780920638000,-500.0,0.00014447,2]
[424452754,1780920638000,-500.0,0.00014447,2]
[424452753,1780920638000,-500.0,0.00014447,2]
[424452769,1780920638000,-500.0,0.00014452,2]
[424452759,1780920638000,-500.0,0.00014447,2]
[424452760,1780920638000,-500.0,0.00014447,2]
[424452761,1780920638000,-500.0,0.00014447,2]
[424452762,1780920638000,-500.0,0.00014447,2]
[424452768,1780920638000,-500.0,0.00014452,2]
[424452767,1780920638000,-500.0,0.00014452,2]
[424452766,1780920638000,-230.9383663,0.00014447,2]
[424452764,1780920638000,-500.0,0.00014447,2]
[424452763,1780920638000,-500.0,0.00014447,2]
[424452765,1780920638000,-500.0,0.00014447,2]
[424452773,1780920638000,-500.0,0.00014452,2]
[424452772,1780920638000,-500.0,0.00014452,2]
[424452771,1780920638000,-500.0,0.00014452,2]
[424452679,1780920638000,-500.0,0.00014159,2]
[424452770,1780920638000,-500.0,0.00014452,2]
[424452746,1780920638000,-166.66,0.00014247,2]
[424452740,1780920638000,-150.0,0.00014159,2]
[424452758,1780920638000,-500.0,0.00014447,2]
[424452714,1780920638000,-446.0,0.00014159,2]
[424452691,1780920638000,-446.0,0.00014159,2]
[424452742,1780920638000,-210.66083121,0.00014159,2]
[424452695,1780920638000,-500.0,0.00014159,2]
[424452697,1780920638000,-446.0,0.00014159,2]
[424452699,1780920638000,-247.20461285,0.00014159,2]
[424452701,1780920638000,-446.0,0.00014159,2]
[424452703,1780920638000,-446.0,0.00014159,2]
[424452713,1780920638000,-446.0,0.00014159,2]
[424452717,1780920638000,-446.0,0.00014159,2]
[424452709,1780920638000,-446.0,0.00014159,2]
[424452704,1780920638000,-446.0,0.00014159,2]
[424452711,1780920638000,-446.0,0.00014159,2]
[424452719,1780920638000,-446.0,0.00014159,2]
[424452707,1780920638000,-446.0,0.00014159,2]
[424452693,1780920638000,-446.0,0.00014159,2]
[424452745,1780920638000,-150.0,0.00014237,2]
[424452744,1780920638000,-152.0,0.0001421,7]
[424452743,1780920638000,-400.0,0.000142,5]
[424452738,1780920638000,-150.0,0.00014159,2]
[424452735,1780920638000,-446.0,0.00014159,2]
[424452723,1780920638000,-446.0,0.00014159,2]
[424452733,1780920638000,-446.0,0.00014159,2]
[424452737,1780920638000,-460.0,0.00014159,2]
[424452728,1780920638000,-446.0,0.00014159,2]
[424452726,1780920638000,-446.0,0.00014159,2]
[424452720,1780920638000,-446.0,0.00014159,2]
[424452724,1780920638000,-446.0,0.00014159,2]
[424452730,1780920638000,-446.0,0.00014159,2]
[424452812,1780920639000,-615.0,0.00014452,2]
[424452811,1780920639000,-500.0,0.00014452,2]
[424452813,1780920639000,-615.0,0.00014452,2]
[424452816,1780920639000,-500.0,0.00014452,2]
[424452810,1780920639000,-615.0,0.00014452,2]
[424452814,1780920639000,-500.0,0.00014452,2]
[424452847,1780920639000,-2200.0,0.000146,5]
[424452820,1780920639000,-615.0,0.00014452,2]
[424452818,1780920639000,-615.0,0.00014452,2]
[424452809,1780920639000,-500.0,0.00014452,2]
[424452808,1780920639000,-615.0,0.00014452,2]
[424452817,1780920639000,-536.89809248,0.00014452,2]
[424452819,1780920639000,-615.0,0.00014452,2]
[424452815,1780920639000,-615.0,0.00014452,2]
[424452830,1780920639000,-500.0,0.00014452,2]
[424452824,1780920639000,-615.0,0.00014452,2]
[424452826,1780920639000,-615.0,0.00014452,2]
[424452823,1780920639000,-150.0,0.00014452,2]
[424452827,1780920639000,-615.0,0.00014452,2]
[424452825,1780920639000,-199.68095837,0.00014452,2]
[424452828,1780920639000,-500.0,0.00014452,2]
[424452832,1780920639000,-615.0,0.00014452,2]
[424452831,1780920639000,-500.0,0.00014452,2]
[424452829,1780920639000,-615.0,0.00014452,2]
[424452822,1780920639000,-615.0,0.00014452,2]
[424452833,1780920639000,-500.0,0.00014452,2]
[424452834,1780920639000,-500.0,0.00014452,2]
[424452800,1780920639000,-500.0,0.00014452,2]
[424452821,1780920639000,-150.0,0.00014452,2]
[424452803,1780920639000,-615.0,0.00014452,2]
[424452775,1780920639000,-500.0,0.00014452,2]
[424452804,1780920639000,-615.0,0.00014452,2]
[424452846,1780920639000,-150.0,0.00014558,2]
[424452781,1780920639000,-500.0,0.00014452,2]
[424452782,1780920639000,-500.0,0.00014452,2]
[424452777,1780920639000,-500.0,0.00014452,2]
[424452779,1780920639000,-500.0,0.00014452,2]
[424452776,1780920639000,-500.0,0.00014452,2]
[424452780,1780920639000,-500.0,0.00014452,2]
[424452778,1780920639000,-500.0,0.00014452,2]
[424452774,1780920639000,-500.0,0.00014452,2]
[424452784,1780920639000,-500.0,0.00014452,2]
[424452783,1780920639000,-500.0,0.00014452,2]
[424452785,1780920639000,-500.0,0.00014452,2]
[424452788,1780920639000,-500.0,0.00014452,2]
[424452787,1780920639000,-355.60355233,0.00014452,2]
[424452799,1780920639000,-615.0,0.00014452,2]
[424452789,1780920639000,-500.0,0.00014452,2]
[424452792,1780920639000,-500.0,0.00014452,2]
[424452790,1780920639000,-500.0,0.00014452,2]
[424452794,1780920639000,-500.0,0.00014452,2]
[424452786,1780920639000,-500.0,0.00014452,2]
[424452791,1780920639000,-500.0,0.00014452,2]
[424452795,1780920639000,-500.0,0.00014452,2]
[424452796,1780920639000,-581.08566082,0.00014452,2]
[424452801,1780920639000,-615.0,0.00014452,2]
[424452798,1780920639000,-500.0,0.00014452,2]
[424452806,1780920639000,-615.0,0.00014452,2]
[424452805,1780920639000,-502.03625046,0.00014452,2]